[Event "FIDE WCCC Open-08 2024"]
[Site "Montesilvano"]
[Date "2024.11.18"]
[Round "4.47"]
[White "Ramirez Mejia, Jose Gregorio"]
[Black "Ameen Akbar T A"]
[Result "0-1"]
[ECO "B33"]
[WhiteElo "1489"]
[BlackElo "1579"]
[Annotator "NA RC"]
[PlyCount "66"]
[EventDate "2024.11.18"]
[EventType "swiss"]
[EventCountry "ITA"]
[SourceTitle "playchess.com"]
[Source "ChessBase"]
[SourceQuality "1"]
[TimeControl "5400+30"]

1. e4 {[%emt 0:00:02]} c5 {[%emt 0:00:54]} 2. Nf3 {[%emt 0:01:30]} e6 {[%emt 0:00:31]} 3. d4 {[%emt 0:00:46]} cxd4 {[%emt 0:02:50]} 4. Nxd4 {[%emt 0:01:37]} Nf6 {[%emt 0:00:44]} 5. Nc3 {[%emt 0:01:36]} Nc6 {[%emt 0:01:01]} 6. Ndb5 {[%emt 1:27:59]} d6 {[%emt 1:27:30]} 7. Bf4 {[%emt 0:00:00]} e5 {[%emt 0:00:00]} 8. Bg5 {[%emt 0:00:00]} a6 {[%emt 0:00:00]} 9. Na3 {[%emt 0:00:00]} b5 {[%emt 0:00:00]} 10. Nd5 {[%emt 0:00:00]} Bb7 {[%emt 0:00:00]} 11. Bxf6 {[%emt 0:00:00]} gxf6 {[%emt 0:00:00]} 12. Be2 {[%emt 0:00:00]} Bg7 {[%emt 0:00:00]} 13. O-O {[%emt 0:00:00]} O-O {[%emt 0:00:00]} 14. Qd2 {[%emt 0:00:00]} Ne7 {[%emt 0:00:00]} 15. f3 {[%emt 0:00:00]} Bxd5 {[%emt 0:00:00]} 16. exd5 {[%emt 0:00:00]} Ng6 {[%emt 0:00:00]} 17. Bd3 {[%emt 0:00:00]} Re8 {[%emt 0:00:00]} 18. Be4 {[%emt 0:00:00]} Qd7 {[%emt 0:00:00]} 19. Bxg6 {[%emt 0:00:00]} fxg6 {[%emt 0:00:00]} 20. f4 {[%emt 0:00:00]} f5 {[%emt 0:00:00]} 21. fxe5 {[%emt 0:00:00]} Bxe5 {[%emt 0:00:00]} 22. Rf3 {[%emt 0:00:00]} Qa7+ {[%emt 0:00:00]} 23. Kh1 {[%emt 0:00:00]} Bxb2 {[%emt 0:08:30]} 24. Rb1 {[%emt 0:09:00]} Bg7 {[%emt 0:00:00]} 25. c4 {[%emt 0:00:00]} bxc4 {[%emt 0:00:00]} 26. Nxc4 {[%emt 0:00:00]} Be5 {[%emt 0:00:00]} 27. Rb6 {[%emt 0:00:00]} Rab8 {[%emt 0:00:00]} 28. Rxb8 {[%emt 0:00:00]} Rxb8 {[%emt 0:00:00]} 29. Rb3 {[%emt 0:00:00]} Re8 {[%emt 0:00:00]} 30. Na5 {[%emt 0:00:00]} Bf4 {[%emt 0:00:00]} 31. Qd1 {[%emt 0:00:00]} Qf2 {[%emt 0:00:00]} 32. Qg1 {[%emt 0:00:00]} Re1 {[%emt 0:00:00]} 33. Rb1 {[%emt 0:00:00]} Qxg1# {[%emt 0:00:00]} 0-1

[Event "FIDE WCCC Open-08 2024"]
[Site "Montesilvano"]
[Date "2024.11.18"]
[Round "4.53"]
[White "Katsarski, Yan"]
[Black "Chanishvili, Noa"]
[Result "0-1"]
[ECO "B12"]
[WhiteElo "1418"]
[BlackElo "1553"]
[Annotator "NA RC"]
[PlyCount "87"]
[EventDate "2024.11.18"]
[EventType "swiss"]
[EventCountry "ITA"]
[SourceTitle "playchess.com"]
[Source "ChessBase"]
[SourceQuality "1"]
[TimeControl "5400+30"]

1. e4 {[%emt 0:01:00]} c6 {[%emt 0:00:07]} 2. d4 {[%emt 0:01:33]} d5 {[%emt 0:00:11]} 3. e5 {[%emt 0:02:22]} Bf5 {[%emt 0:00:19]} 4. h4 {[%emt 0:01:35]} h6 {[%emt 0:00:27]} 5. g4 {[%emt 0:03:40]} Be4 {[%emt 0:00:29]} 6. f3 {[%emt 1:23:20]} Bh7 {[%emt 0:00:36]} 7. e6 {[%emt 0:00:00]} Qd6 {[%emt 0:01:01]} 8. exf7+ {[%emt 0:00:00]} Kxf7 {[%emt 0:00:38]} 9. Be3 {[%emt 0:00:00]} Qe6 {[%emt 0:01:17]} 10. Nc3 {[%emt 0:00:00]} Qxe3+ {[%emt 0:01:35]} 11. Be2 {[%emt 0:00:00]} Nf6 {[%emt 0:02:42]} 12. h5 {[%emt 0:03:00]} Qf4 {[%emt 0:03:35]} 13. Nh3 {[%emt 0:00:00]} Qg3+ {[%emt 0:01:06]} 14. Nf2 {[%emt 0:00:00]} e6 {[%emt 0:01:30]} 15. Qd2 {[%emt 0:00:00]} Bb4 {[%emt 0:02:09]} 16. Rf1 {[%emt 0:00:00]} Bxc3 {[%emt 0:01:57]} 17. Qxc3 {[%emt 0:00:00]} Qd6 {[%emt 0:01:21]} 18. O-O-O {[%emt 0:00:00]} Nbd7 {[%emt 0:02:14]} 19. Rfe1 {[%emt 0:00:00]} Rac8 {[%emt 1:16:46]} 20. Bf1 {[%emt 0:00:00]} c5 {[%emt 0:00:00]} 21. Bd3 {[%emt 0:00:00]} cxd4 {[%emt 0:00:00]} 22. Qxd4 {[%emt 0:00:00]} Qc5 {[%emt 0:00:00]} 23. Bg6+ {[%emt 0:00:00]} Bxg6 {[%emt 0:00:00]} 24. hxg6+ {[%emt 0:00:00]} Ke7 {[%emt 0:00:00]} 25. Qd3 {[%emt 0:00:00]} Qxf2 {[%emt 0:00:00]} 26. Re2 {[%emt 0:00:00]} Qc5 {[%emt 0:00:00]} 27. Rde1 {[%emt 0:00:00]} Nf8 {[%emt 0:00:00]} 28. Qf5 {[%emt 0:00:00]} d4 {[%emt 0:00:00]} 29. Re5 {[%emt 0:00:00]} Qc6 {[%emt 0:00:00]} 30. Kb1 {[%emt 0:02:08]} Qd6 {[%emt 0:00:00]} 31. a3 {[%emt 0:01:14]} Rc6 {[%emt 0:00:00]} 32. Qd3 {[%emt 0:04:00]} Kd7 {[%emt 0:00:00]} 33. R5e2 {[%emt 0:02:02]} Kc7 {[%emt 0:00:00]} 34. Ka1 {[%emt 0:00:53]} Qc5 {[%emt 0:00:00]} 35. Kb1 {[%emt 0:00:42]} Qc4 {[%emt 0:00:00]} 36. Qd2 {[%emt 0:00:22]} Nxg6 {[%emt 0:00:00]} 37. b3 {[%emt 0:00:27]} Qc3 {[%emt 0:00:00]} 38. Qxc3 {[%emt 0:00:30]} dxc3 {[%emt 0:00:00]} 39. Ka2 {[%emt 0:00:27]} Nf4 {[%emt 0:00:00]} 40. Re5 {[%emt 0:00:35]} Rd6 {[%emt 0:00:00]} 41. Rc5+ {[%emt 0:00:26]} Kd7 {[%emt 0:00:00]} 42. Rxc3 {[%emt 0:00:19]} Rc6 {[%emt 0:00:00]} 43. Rd1+ {[%emt 0:00:51]} N6d5 {[%emt 0:00:00]} 44. Re3 {[%emt 0:01:04]} 0-1

[Event "FIDE WCCC Open-08 2024"]
[Site "Montesilvano"]
[Date "2024.11.18"]
[Round "4.54"]
[White "Contreras Salcedo, Samuel Esteban"]
[Black "Glod, Peter"]
[Result "1/2-1/2"]
[ECO "C57"]
[WhiteElo "1508"]
[BlackElo "1409"]
[Annotator "NA RC"]
[PlyCount "74"]
[EventDate "2024.11.18"]
[EventType "swiss"]
[EventCountry "ITA"]
[SourceTitle "playchess.com"]
[Source "ChessBase"]
[SourceQuality "1"]
[TimeControl "5400+30"]

1. e4 {[%emt 0:00:05]} e5 {[%emt 0:00:17]} 2. Nf3 {[%emt 0:00:06]} Nc6 {[%emt 0:00:10]} 3. Bc4 {[%emt 0:00:06]} Nf6 {[%emt 0:00:11]} 4. Ng5 {[%emt 0:00:10]} d5 {[%emt 0:00:11]} 5. exd5 {[%emt 0:00:10]} b5 {[%emt 0:00:10]} 6. Bxb5 {[%emt 0:01:58]} Qxd5 {[%emt 0:01:48]} 7. Bxc6+ {[%emt 0:00:57]} Qxc6 {[%emt 0:00:15]} 8. Qf3 {[%emt 0:00:24]} Qxf3 {[%emt 0:00:25]} 9. Nxf3 {[%emt 0:00:19]} Nd7 {[%emt 0:03:03]} 10. Nc3 {[%emt 0:02:55]} Bc5 {[%emt 0:01:09]} 11. Nd5 {[%emt 0:01:05]} Kd8 {[%emt 0:02:49]} 12. Ng5 {[%emt 0:00:34]} c6 {[%emt 0:10:31]} 13. Nxf7+ {[%emt 0:00:15]} Ke8 {[%emt 0:00:50]} 14. Nc7+ {[%emt 0:00:21]} Kxf7 {[%emt 0:01:40]} 15. Nxa8 {[%emt 0:00:32]} Bd6 {[%emt 0:03:25]} 16. g3 {[%emt 0:06:52]} Bb7 {[%emt 0:01:36]} 17. f4 {[%emt 0:00:42]} exf4 {[%emt 0:01:17]} 18. gxf4 {[%emt 0:00:26]} Re8+ {[%emt 0:00:15]} 19. Kf2 {[%emt 0:00:59]} Bxf4 {[%emt 0:01:16]} 20. Re1 {[%emt 0:00:57]} Rxe1 {[%emt 0:00:20]} 21. Kxe1 {[%emt 0:01:29]} Bxh2 {[%emt 0:01:22]} 22. b3 {[%emt 0:00:32]} Bxa8 {[%emt 0:00:17]} 23. Bb2 {[%emt 0:00:15]} Ne5 {[%emt 0:00:25]} 24. Kf2 {[%emt 0:00:31]} c5 {[%emt 0:00:40]} 25. Ke3 {[%emt 0:00:54]} Ng4+ {[%emt 0:04:28]} 26. Kd3 {[%emt 0:10:08]} Bg3 {[%emt 0:11:12]} 27. Rg1 {[%emt 0:08:25]} Ne5+ {[%emt 0:00:51]} 28. Ke3 {[%emt 0:02:33]} Bh2 {[%emt 0:03:06]} 29. Rf1+ {[%emt 0:09:09]} Kg8 {[%emt 0:00:32]} 30. Ba3 {[%emt 0:07:21]} Ng4+ {[%emt 0:05:51]} 31. Ke2 {[%emt 0:00:29]} Bd6 {[%emt 0:01:42]} 32. Bb2 {[%emt 0:00:51]} Ne5 {[%emt 0:06:00]} 33. Re1 {[%emt 0:03:17]} Nc6 {[%emt 0:03:33]} 34. Kd1 {[%emt 0:02:50]} Kf7 {[%emt 0:00:48]} 35. Rf1+ {[%emt 0:00:48]} Kg8 {[%emt 0:00:13]} 36. Re1 {[%emt 0:00:08]} Kf7 {[%emt 0:00:07]} 37. Rf1+ {[%emt 0:00:14]} Kg8 {[%emt 0:00:06]} 1/2-1/2

[Event "FIDE WCCC Open-08 2024"]
[Site "Montesilvano"]
[Date "2024.11.18"]
[Round "4.55"]
[White "Huang, Joshua Kai-En"]
[Black "Hakobyan, Sos"]
[Result "1-0"]
[ECO "B80"]
[WhiteElo "1424"]
[BlackElo "1806"]
[Annotator "NA RC"]
[PlyCount "47"]
[EventDate "2024.11.18"]
[EventType "swiss"]
[EventCountry "ITA"]
[SourceTitle "playchess.com"]
[Source "ChessBase"]
[SourceQuality "1"]
[TimeControl "5400+30"]

1. e4 {[%emt 0:00:30]} c5 {[%emt 0:00:14]} 2. Nf3 {[%emt 0:00:46]} d6 {[%emt 0:00:47]} 3. d4 {[%emt 0:00:51]} cxd4 {[%emt 0:00:48]} 4. Nxd4 {[%emt 0:00:19]} Nf6 {[%emt 0:01:04]} 5. Nc3 {[%emt 0:01:13]} a6 {[%emt 0:00:52]} 6. f3 {[%emt 1:29:51]} e6 {[%emt 0:01:38]} 7. Be3 {[%emt 0:00:00]} Be7 {[%emt 0:00:48]} 8. Qd2 {[%emt 0:00:00]} O-O {[%emt 0:00:50]} 9. O-O-O {[%emt 0:00:00]} Qc7 {[%emt 0:01:26]} 10. g4 {[%emt 0:00:00]} Nc6 {[%emt 0:07:14]} 11. Nxc6 {[%emt 0:00:00]} Qxc6 {[%emt 0:00:37]} 12. h4 {[%emt 0:00:00]} Rd8 {[%emt 0:05:15]} 13. g5 {[%emt 0:00:00]} Ne8 {[%emt 0:02:34]} 14. h5 {[%emt 0:04:00]} Nc7 {[%emt 0:01:37]} 15. g6 {[%emt 0:00:00]} Rf8 {[%emt 0:17:12]} 16. gxh7+ {[%emt 0:00:00]} Kh8 {[%emt 0:04:44]} 17. Bd3 {[%emt 0:00:00]} e5 {[%emt 0:05:30]} 18. Qg2 {[%emt 0:00:00]} Be6 {[%emt 0:03:49]} 19. Rdg1 {[%emt 0:00:00]} Ne8 {[%emt 0:00:23]} 20. Bh6 {[%emt 0:00:00]} Bf6 {[%emt 0:43:08]} 21. Bg5 {[%emt 0:00:00]} Bxg5+ {[%emt 0:00:00]} 22. Qxg5 {[%emt 0:00:00]} b5 {[%emt 0:00:00]} 23. Qe7 {[%emt 0:00:00]} Nf6 {[%emt 0:00:00]} 24. h6 {[%emt 0:00:00]} 1-0

[Event "FIDE WCCC Open-08 2024"]
[Site "Montesilvano"]
[Date "2024.11.20"]
[Round "6.1"]
[White "Demchenko, Timofei"]
[Black "Sattwik Swain"]
[Result "1/2-1/2"]
[ECO "C45"]
[WhiteElo "1969"]
[BlackElo "1787"]
[Annotator "NA RC"]
[PlyCount "84"]
[EventDate "2024.11.18"]
[EventType "swiss"]
[EventCountry "ITA"]
[SourceTitle "playchess.com"]
[Source "ChessBase"]
[SourceQuality "1"]
[TimeControl "5400+30"]

1. e4 {[%emt 0:00:01]} e5 {[%emt 0:00:09]} 2. Nf3 {[%emt 0:00:04]} Nc6 {[%emt 0:00:07]} 3. d4 {[%emt 0:00:06]} exd4 {[%emt 0:00:18]} 4. Nxd4 {[%emt 0:00:05]} Bc5 {[%emt 0:00:13]} 5. Be3 {[%emt 0:00:05]} Qf6 {[%emt 0:00:11]} 6. c3 {[%emt 0:00:07]} Nge7 {[%emt 0:00:06]} 7. Bc4 {[%emt 0:00:06]} Ne5 {[%emt 0:00:13]} 8. Bb3 {[%emt 0:01:32]} Qg6 {[%emt 0:01:21]} 9. O-O {[%emt 0:21:39]} d5 {[%emt 0:00:46]} 10. Kh1 {[%emt 0:07:37]} O-O {[%emt 0:20:06]} 11. exd5 {[%emt 0:09:53]} Ng4 {[%emt 0:13:13]} 12. Bf4 {[%emt 0:08:04]} Qb6 {[%emt 0:13:04]} 13. Nd2 {[%emt 0:14:41]} Bxd4 {[%emt 0:07:05]} 14. Nc4 {[%emt 0:00:13]} Qf6 {[%emt 0:00:24]} 15. Qxd4 {[%emt 0:01:09]} Qxd4 {[%emt 0:00:13]} 16. cxd4 {[%emt 0:00:09]} Nxd5 {[%emt 0:00:07]} 17. Bg3 {[%emt 0:00:25]} Be6 {[%emt 0:01:18]} 18. h3 {[%emt 0:01:25]} Ngf6 {[%emt 0:00:35]} 19. Rae1 {[%emt 0:03:23]} Rad8 {[%emt 0:05:43]} 20. Ne5 {[%emt 0:06:25]} Rfe8 {[%emt 0:12:08]} 21. f4 {[%emt 0:01:15]} Nb4 {[%emt 0:02:34]} 22. Ba4 {[%emt 0:01:25]} c6 {[%emt 0:02:27]} 23. a3 {[%emt 0:00:25]} Na6 {[%emt 0:00:49]} 24. f5 {[%emt 0:00:38]} Bd5 {[%emt 0:01:12]} 25. Bh4 {[%emt 0:02:40]} Rd6 {[%emt 0:00:42]} 26. Ng4 {[%emt 0:00:46]} Kf8 {[%emt 0:07:35]} 27. Rxe8+ {[%emt 0:04:05]} Kxe8 {[%emt 0:00:37]} 28. Re1+ {[%emt 0:00:25]} Kf8 {[%emt 0:00:33]} 29. Bc2 {[%emt 0:01:59]} Nc7 {[%emt 0:01:12]} 30. Bg5 {[%emt 0:04:20]} Nce8 {[%emt 0:00:37]} 31. Bd2 {[%emt 0:00:51]} Nxg4 {[%emt 0:01:04]} 32. hxg4 {[%emt 0:00:08]} Rd7 {[%emt 0:00:56]} 33. g5 {[%emt 0:00:47]} f6 {[%emt 0:00:33]} 34. Bb4+ {[%emt 0:01:18]} Nd6 {[%emt 0:00:06]} 35. g6 {[%emt 0:00:54]} h6 {[%emt 0:00:20]} 36. a4 {[%emt 0:01:01]} b6 {[%emt 0:00:16]} 37. Be4 {[%emt 0:01:34]} Bxe4 {[%emt 0:02:00]} 38. Rxe4 {[%emt 0:00:14]} c5 {[%emt 0:00:33]} 39. dxc5 {[%emt 0:00:04]} Nxe4 {[%emt 0:00:05]} 40. c6+ {[%emt 0:00:05]} Nc5 {[%emt 0:00:46]} 41. cxd7 {[%emt 0:00:58]} Ke7 {[%emt 0:00:08]} 42. Bd2 {[%emt 0:00:21]} Nxd7 {[%emt 0:00:17]} 1/2-1/2

[Event "FIDE WCCC Open-08 2024"]
[Site "Montesilvano"]
[Date "2024.11.20"]
[Round "6.2"]
[White "Li, Aiden Linyuan"]
[Black "Xu, Zhihan (Samuel)"]
[Result "1-0"]
[ECO "B13"]
[WhiteElo "1877"]
[BlackElo "1881"]
[Annotator "NA RC"]
[PlyCount "111"]
[EventDate "2024.11.18"]
[EventType "swiss"]
[EventCountry "ITA"]
[SourceTitle "playchess.com"]
[Source "ChessBase"]
[SourceQuality "1"]
[TimeControl "5400+30"]

1. c4 {[%emt 0:00:03]} c6 {[%emt 0:00:03]} 2. e4 {[%emt 0:00:06]} d5 {[%emt 0:00:13]} 3. exd5 {[%emt 0:00:06]} cxd5 {[%emt 0:00:03]} 4. d4 {[%emt 0:00:09]} Nf6 {[%emt 0:07:21]} 5. Nc3 {[%emt 0:00:09]} Nc6 {[%emt 0:09:25]} 6. Bf4 {[%emt 0:01:00]} e6 {[%emt 0:05:25]} 7. c5 {[%emt 0:00:08]} Be7 {[%emt 0:02:51]} 8. Bb5 {[%emt 0:00:20]} Bd7 {[%emt 0:01:04]} 9. Nf3 {[%emt 0:02:35]} O-O {[%emt 0:02:26]} 10. Bxc6 {[%emt 0:01:19]} Bxc6 {[%emt 0:00:49]} 11. b4 {[%emt 0:00:15]} Ne4 {[%emt 0:13:10]} 12. Qc2 {[%emt 0:00:22]} Nxc3 {[%emt 0:07:25]} 13. Qxc3 {[%emt 0:00:10]} a5 {[%emt 0:00:10]} 14. a3 {[%emt 0:03:52]} Bb5 {[%emt 0:07:15]} 15. Qb2 {[%emt 0:21:05]} axb4 {[%emt 0:08:20]} 16. axb4 {[%emt 0:00:07]} Rxa1+ {[%emt 0:03:16]} 17. Qxa1 {[%emt 0:00:08]} Qa8 {[%emt 0:00:05]} 18. Kd2 {[%emt 0:00:14]} b6 {[%emt 0:10:59]} 19. Qxa8 {[%emt 0:03:38]} Rxa8 {[%emt 0:00:01]} 20. cxb6 {[%emt 0:00:15]} Bxb4+ {[%emt 0:00:16]} 21. Kc2 {[%emt 0:00:08]} Ba4+ {[%emt 0:02:13]} 22. Kb2 {[%emt 0:01:21]} Bc6 {[%emt 0:00:30]} 23. Ne5 {[%emt 0:02:40]} Bb7 {[%emt 0:01:30]} 24. Nd3 {[%emt 0:00:11]} Ba3+ {[%emt 0:06:25]} 25. Kb3 {[%emt 0:00:19]} Be7 {[%emt 0:00:30]} 26. Nc5 {[%emt 0:00:47]} Bxc5 {[%emt 0:00:56]} 27. dxc5 {[%emt 0:00:08]} Ra5 {[%emt 0:03:19]} 28. Rc1 {[%emt 0:06:30]} Rb5+ {[%emt 0:00:55]} 29. Ka3 {[%emt 0:00:20]} Bc6 {[%emt 0:00:15]} 30. Bd2 {[%emt 0:00:09]} Kf8 {[%emt 0:03:10]} 31. Ra1 {[%emt 0:02:54]} d4 {[%emt 0:00:50]} 32. Bb4 {[%emt 0:00:32]} e5 {[%emt 0:00:40]} 33. f4 {[%emt 0:01:03]} e4 {[%emt 0:01:10]} 34. Rd1 {[%emt 0:00:10]} d3 {[%emt 0:01:07]} 35. Kb3 {[%emt 0:00:17]} Ke7 {[%emt 0:00:53]} 36. Kc4 {[%emt 0:00:39]} Ke6 {[%emt 0:00:50]} 37. Bc3 {[%emt 0:00:33]} Kf5 {[%emt 0:01:00]} 38. Bxg7 {[%emt 0:01:12]} Kxf4 {[%emt 0:00:11]} 39. Bd4 {[%emt 0:01:25]} Ra5 {[%emt 0:01:29]} 40. Rf1+ {[%emt 0:00:06]} Kg4 {[%emt 0:00:31]} 41. Be3 {[%emt 0:00:52]} Ra4+ {[%emt 0:00:59]} 42. Kb3 {[%emt 0:00:24]} Ra5 {[%emt 0:00:20]} 43. Rxf7 {[%emt 0:01:30]} Bd5+ {[%emt 0:00:52]} 44. Kb4 {[%emt 0:00:06]} Ra2 {[%emt 0:00:18]} 45. Rf4+ {[%emt 0:00:10]} Kg5 {[%emt 0:00:58]} 46. Rf2+ {[%emt 0:00:14]} Kg4 {[%emt 0:00:24]} 47. Rxa2 {[%emt 0:00:06]} Bxa2 {[%emt 0:00:16]} 48. b7 {[%emt 0:00:10]} d2 {[%emt 0:00:49]} 49. b8=Q {[%emt 0:00:17]} Kf5 {[%emt 0:00:32]} 50. g4+ {[%emt 0:00:54]} Ke6 {[%emt 0:00:27]} 51. Qd6+ {[%emt 0:00:05]} Kf7 {[%emt 0:00:04]} 52. Qd7+ {[%emt 0:00:27]} Kf6 {[%emt 0:00:31]} 53. Bg5+ {[%emt 0:00:09]} Kg6 {[%emt 0:00:47]} 54. Qf5+ {[%emt 0:00:23]} Kg7 {[%emt 0:00:05]} 55. Bh6+ {[%emt 0:00:08]} Kxh6 {[%emt 0:01:37]} 56. Qf6# {[%emt 0:55:10]} 1-0

[Event "FIDE WCCC Open-08 2024"]
[Site "Montesilvano"]
[Date "2024.11.20"]
[Round "6.3"]
[White "Singh, Ian Avery"]
[Black "Badescu, Matei-Andrei"]
[Result "0-1"]
[ECO "B90"]
[WhiteElo "1713"]
[BlackElo "1829"]
[Annotator "NA RC"]
[PlyCount "116"]
[EventDate "2024.11.18"]
[EventType "swiss"]
[EventCountry "ITA"]
[SourceTitle "playchess.com"]
[Source "ChessBase"]
[SourceQuality "1"]
[TimeControl "5400+30"]

1. e4 {[%emt 0:00:01]} c5 {[%emt 0:00:16]} 2. Nf3 {[%emt 0:00:06]} d6 {[%emt 0:00:05]} 3. d4 {[%emt 0:00:04]} cxd4 {[%emt 0:00:07]} 4. Nxd4 {[%emt 0:00:07]} Nf6 {[%emt 0:00:14]} 5. Nc3 {[%emt 0:00:06]} a6 {[%emt 0:00:13]} 6. f3 {[%emt 0:00:06]} e5 {[%emt 0:02:20]} 7. Nb3 {[%emt 0:00:05]} h5 {[%emt 0:04:13]} 8. Be3 {[%emt 0:00:58]} Be6 {[%emt 0:00:40]} 9. Nd5 {[%emt 0:00:14]} Bxd5 {[%emt 0:00:40]} 10. exd5 {[%emt 0:00:14]} g6 {[%emt 0:00:35]} 11. Qd2 {[%emt 0:02:05]} Nbd7 {[%emt 0:00:59]} 12. Be2 {[%emt 0:02:36]} Bg7 {[%emt 0:00:33]} 13. c4 {[%emt 0:06:11]} b6 {[%emt 0:02:47]} 14. O-O {[%emt 0:03:46]} O-O {[%emt 0:00:23]} 15. Nc1 {[%emt 0:05:51]} Qc7 {[%emt 0:01:50]} 16. Nd3 {[%emt 0:05:39]} e4 {[%emt 0:12:40]} 17. fxe4 {[%emt 0:07:15]} Nxe4 {[%emt 0:00:42]} 18. Qc2 {[%emt 0:02:01]} Rae8 {[%emt 0:01:10]} 19. Qc1 {[%emt 0:12:00]} Nec5 {[%emt 0:01:03]} 20. Nxc5 {[%emt 0:02:24]} bxc5 {[%emt 0:00:24]} 21. Rf3 {[%emt 0:04:13]} Qb8 {[%emt 0:05:07]} 22. Rb1 {[%emt 0:00:46]} Rxe3 {[%emt 0:03:31]} 23. Rxe3 {[%emt 0:00:09]} Bd4 {[%emt 0:00:06]} 24. Kh1 {[%emt 0:00:33]} Bxe3 {[%emt 0:00:10]} 25. Qxe3 {[%emt 0:00:01]} Re8 {[%emt 0:00:27]} 26. Qf2 {[%emt 0:06:07]} Qb4 {[%emt 0:00:43]} 27. Rf1 {[%emt 0:02:47]} Ne5 {[%emt 0:03:15]} 28. b3 {[%emt 0:01:40]} Qd2 {[%emt 0:00:18]} 29. Bf3 {[%emt 0:10:54]} Qxf2 {[%emt 0:00:24]} 30. Rxf2 {[%emt 0:02:51]} Nxc4 {[%emt 0:00:17]} 31. Be2 {[%emt 0:04:32]} Nd2 {[%emt 0:02:17]} 32. h3 {[%emt 0:03:14]} Ne4 {[%emt 0:00:46]} 33. Rf3 {[%emt 0:02:13]} Ng3+ {[%emt 0:02:57]} 34. Rxg3 {[%emt 0:00:12]} Rxe2 {[%emt 0:00:05]} 35. b4 {[%emt 0:04:55]} cxb4 {[%emt 0:00:14]} 36. a3 {[%emt 0:01:16]} bxa3 {[%emt 0:01:08]} 37. Rxa3 {[%emt 0:00:10]} Rd2 {[%emt 0:00:11]} 38. Rxa6 {[%emt 0:00:31]} Rxd5 {[%emt 0:00:07]} 39. Kg1 {[%emt 0:00:05]} Rd2 {[%emt 0:00:34]} 40. g4 {[%emt 0:02:13]} hxg4 {[%emt 0:00:05]} 41. hxg4 {[%emt 0:00:06]} Rd4 {[%emt 0:00:22]} 42. Kf2 {[%emt 0:00:02]} Rxg4 {[%emt 0:00:46]} 43. Rxd6 {[%emt 0:00:18]} Ra4 {[%emt 0:00:14]} 44. Kg3 {[%emt 0:00:07]} Kg7 {[%emt 0:00:09]} 45. Rb6 {[%emt 0:00:10]} f5 {[%emt 0:00:12]} 46. Kf3 {[%emt 0:00:08]} Kh6 {[%emt 0:00:08]} 47. Rb8 {[%emt 0:00:36]} Kg5 {[%emt 0:00:08]} 48. Rb6 {[%emt 0:00:10]} Ra3+ {[%emt 0:00:06]} 49. Kf2 {[%emt 0:00:09]} f4 {[%emt 0:00:16]} 50. Rc6 {[%emt 0:00:08]} Kf5 {[%emt 0:00:10]} 51. Rb6 {[%emt 0:02:27]} g5 {[%emt 0:00:05]} 52. Rb5+ {[%emt 0:00:04]} Kg4 {[%emt 0:00:05]} 53. Rc5 {[%emt 0:00:33]} Ra2+ {[%emt 0:00:05]} 54. Kf1 {[%emt 0:00:09]} f3 {[%emt 0:00:34]} 55. Rb5 {[%emt 0:00:29]} Kf4 {[%emt 0:00:11]} 56. Rc5 {[%emt 0:01:07]} g4 {[%emt 0:00:09]} 57. Rc1 {[%emt 0:04:12]} Kg3 {[%emt 0:00:14]} 58. Rb1 {[%emt 0:00:15]} Rh2 {[%emt 0:00:09]} 0-1

[Event "FIDE WCCC Open-08 2024"]
[Site "Montesilvano"]
[Date "2024.11.20"]
[Round "6.4"]
[White "Mani, Sarbartho"]
[Black "Elemes, Nurmukhamed"]
[Result "1-0"]
[ECO "B23"]
[WhiteElo "1824"]
[BlackElo "1735"]
[Annotator "NA RC"]
[PlyCount "55"]
[EventDate "2024.11.18"]
[EventType "swiss"]
[EventCountry "ITA"]
[SourceTitle "playchess.com"]
[Source "ChessBase"]
[SourceQuality "1"]
[TimeControl "5400+30"]

1. e4 {[%emt 0:00:27]} c5 {[%emt 0:00:50]} 2. Nc3 {[%emt 0:01:49]} d6 {[%emt 0:01:11]} 3. f4 {[%emt 0:00:09]} g6 {[%emt 0:00:40]} 4. Nf3 {[%emt 0:00:06]} Bg7 {[%emt 0:01:20]} 5. Bc4 {[%emt 0:00:32]} Nc6 {[%emt 0:01:29]} 6. d3 {[%emt 0:00:15]} e6 {[%emt 0:01:28]} 7. O-O {[%emt 0:00:51]} Nge7 {[%emt 0:01:32]} 8. Qe1 {[%emt 0:05:37]} O-O {[%emt 0:02:40]} 9. Bb3 {[%emt 0:13:36]} d5 {[%emt 0:06:32]} 10. Bd2 {[%emt 0:02:30]} Nd4 {[%emt 0:04:53]} 11. Nxd4 {[%emt 0:00:27]} cxd4 {[%emt 0:05:46]} 12. Ne2 {[%emt 0:00:15]} dxe4 {[%emt 0:04:43]} 13. dxe4 {[%emt 0:00:07]} b5 {[%emt 0:02:29]} 14. Ba5 {[%emt 0:00:56]} Qd7 {[%emt 0:06:57]} 15. Rd1 {[%emt 0:01:42]} Nc6 {[%emt 0:03:14]} 16. Bd2 {[%emt 0:00:08]} a5 {[%emt 0:05:15]} 17. a3 {[%emt 0:00:12]} Qa7 {[%emt 0:04:56]} 18. Kh1 {[%emt 0:01:39]} Qc5 {[%emt 0:04:24]} 19. Nc1 {[%emt 0:01:14]} Qb6 {[%emt 0:08:21]} 20. Nd3 {[%emt 0:00:15]} Ne7 {[%emt 0:03:27]} 21. Qh4 {[%emt 0:03:12]} Re8 {[%emt 0:04:46]} 22. Rde1 {[%emt 0:01:29]} f6 {[%emt 0:04:54]} 23. f5 {[%emt 1:04:32]} Kh8 {[%emt 0:03:17]} 24. Ne5 {[%emt 0:00:00]} fxe5 {[%emt 0:01:54]} 25. f6 {[%emt 0:00:00]} Ng8 {[%emt 0:04:08]} 26. fxg7+ {[%emt 0:00:00]} Kxg7 {[%emt 0:00:07]} 27. Rf7+ {[%emt 0:00:00]} Kxf7 {[%emt 0:05:32]} 28. Qxh7+ {[%emt 0:00:00]} 1-0